[Event "*** Titled Tuesday Blitz"]
[Site "Chess.com"]
[Date "2020.05.19"]
[Round "5"]
[White "shrek4life02"]
[Black "WanderingPuppet"]
[Result "0-1"]
[WhiteElo "2483"]
[BlackElo "2334"]
[TimeControl "180+1"]
[EndTime "12:57:48 PDT"]
[Termination "WanderingPuppet won on time"]

1. d4 {[%clk 0:03:00.9]} 1... Nf6 {[%clk 0:02:58.8]} 2. Nc3 {[%clk 0:03:01.4]}
2... d5 {[%clk 0:02:57.6]} 3. Bg5 {[%clk 0:03:02]} 3... c5 {[%clk 0:02:57.3]} 4.
Qd2 {[%clk 0:03:02.5]} 4... cxd4 {[%clk 0:02:55.5]} 5. Qxd4 {[%clk 0:03:02.7]}
5... Nc6 {[%clk 0:02:55.5]} 6. Qd2 {[%clk 0:03:01.7]} 6... d4 {[%clk 0:02:54.2]}
7. Nb5 {[%clk 0:03:00.1]} 7... Ne4 {[%clk 0:02:52]} 8. Qf4 {[%clk 0:02:51.7]}
8... Qa5+ {[%clk 0:02:24]} 9. c3 {[%clk 0:02:51.6]} 9... Qxb5 {[%clk 0:02:16.8]}
10. Qxe4 {[%clk 0:02:50.3]} 10... Qxg5 {[%clk 0:02:11.1]} 11. cxd4 {[%clk
0:02:50.5]} 11... Qa5+ {[%clk 0:02:04.4]} 12. Kd1 {[%clk 0:02:49.3]} 12... Bf5
{[%clk 0:01:55.9]} 13. Qf4 {[%clk 0:02:43]} 13... Nxd4 {[%clk 0:01:40.8]} 14. e4
{[%clk 0:02:31.6]} 14... Rd8 {[%clk 0:01:11.7]} 15. Bd3 {[%clk 0:02:23.7]} 15...
Nb3 {[%clk 0:00:55.2]} 16. axb3 {[%clk 0:02:10.6]} 16... Qxa1+ {[%clk
0:00:51.3]} 17. Kc2 {[%clk 0:02:10.2]} 17... Rc8+ {[%clk 0:00:31.6]} 18. Bc4
{[%clk 0:02:09.1]} 18... Be6 {[%clk 0:00:29.7]} 19. Qe5 {[%clk 0:02:00.5]} 19...
Bxc4 {[%clk 0:00:25.2]} 20. bxc4 {[%clk 0:02:01.2]} 20... Rxc4+ {[%clk
0:00:23.6]} 21. Kd3 {[%clk 0:01:59.7]} 21... Qa6 {[%clk 0:00:17.4]} 22. Ke3
{[%clk 0:02:00.2]} 22... Rc8 {[%clk 0:00:15]} 23. Ne2 {[%clk 0:01:58.6]} 23...
e6 {[%clk 0:00:13.9]} 24. Rd1 {[%clk 0:01:58.1]} 24... Bc5+ {[%clk 0:00:12.8]}
25. Kf3 {[%clk 0:01:58.5]} 25... O-O {[%clk 0:00:13.1]} 26. Rc1 {[%clk
0:01:57.2]} 26... Qb6 {[%clk 0:00:11.6]} 27. h4 {[%clk 0:01:53.2]} 27... Bxf2
{[%clk 0:00:10.8]} 28. Rc3 {[%clk 0:01:50]} 28... Rxc3+ {[%clk 0:00:08.4]} 29.
Qxc3 {[%clk 0:01:50.7]} 29... Bxh4 {[%clk 0:00:07.7]} 30. Nf4 {[%clk 0:01:49.9]}
30... Bf6 {[%clk 0:00:07.3]} 31. Qd3 {[%clk 0:01:49.7]} 31... Qc6 {[%clk
0:00:07]} 32. g4 {[%clk 0:01:49.1]} 32... Rd8 {[%clk 0:00:06.9]} 33. Qb3 {[%clk
0:01:48.8]} 33... b6 {[%clk 0:00:05.6]} 34. Nh5 {[%clk 0:01:48.4]} 34... Be5
{[%clk 0:00:04.8]} 35. Qe3 {[%clk 0:01:48.5]} 35... Qd6 {[%clk 0:00:04.3]} 36.
Qg5 {[%clk 0:01:46.1]} 36... Qd1+ {[%clk 0:00:03.9]} 37. Kg2 {[%clk 0:01:45.2]}
37... Qd2+ {[%clk 0:00:04]} 38. Qxd2 {[%clk 0:01:44.6]} 38... Rxd2+ {[%clk
0:00:04.9]} 39. Kf3 {[%clk 0:01:45.4]} 39... Rxb2 {[%clk 0:00:05.4]} 40. g5
{[%clk 0:01:46.2]} 40... g6 {[%clk 0:00:05.6]} 41. Ng3 {[%clk 0:01:46.4]} 41...
Bxg3 {[%clk 0:00:05.6]} 42. e5 {[%clk 0:01:47]} 42... Rb5 {[%clk 0:00:06.5]} 43.
Kxg3 {[%clk 0:01:47.3]} 43... Rxe5 {[%clk 0:00:06.9]} 44. Kf4 {[%clk 0:01:47.4]}
44... Rf5+ {[%clk 0:00:07.8]} 45. Kg4 {[%clk 0:01:46.1]} 45... a5 {[%clk
0:00:08.7]} 46. Kg3 {[%clk 0:01:46.7]} 46... a4 {[%clk 0:00:09.3]} 47. Kg4
{[%clk 0:01:47.6]} 47... a3 {[%clk 0:00:10.2]} 48. Kg3 {[%clk 0:01:48]} 48... a2
{[%clk 0:00:11.1]} 49. Kg4 {[%clk 0:01:48.8]} 49... a1=Q {[%clk 0:00:11.1]} 50.
Kg3 {[%clk 0:01:49.5]} 50... Qa4 {[%clk 0:00:12]} 51. Kh3 {[%clk 0:01:49.8]}
51... Rb5 {[%clk 0:00:12.9]} 52. Kg2 {[%clk 0:01:50.7]} 52... Rb3 {[%clk
0:00:13.4]} 53. Kf2 {[%clk 0:01:51.1]} 53... Qa2+ {[%clk 0:00:14.3]} 0-1

[Event "*** Titled Tuesday Blitz"]
[Site "Chess.com"]
[Date "2020.05.19"]
[Round "5"]
[White "viviania"]
[Black "StephenDedalus83"]
[Result "0-1"]
[WhiteElo "2811"]
[BlackElo "2767"]
[TimeControl "180+1"]
[EndTime "12:57:49 PDT"]
[Termination "StephenDedalus83 won on time"]

1. e4 {[%clk 0:03:00.9]} 1... g6 {[%clk 0:02:59.2]} 2. d4 {[%clk 0:02:59.9]}
2... Bg7 {[%clk 0:02:59.7]} 3. c4 {[%clk 0:03:00]} 3... d6 {[%clk 0:02:58.4]} 4.
Nc3 {[%clk 0:03:00]} 4... Nc6 {[%clk 0:02:54.3]} 5. Nge2 {[%clk 0:02:59]} 5...
Nf6 {[%clk 0:02:48.1]} 6. f3 {[%clk 0:02:54.6]} 6... O-O {[%clk 0:02:45.4]} 7.
Be3 {[%clk 0:02:53.9]} 7... a6 {[%clk 0:02:44.5]} 8. Qd2 {[%clk 0:02:43.6]} 8...
Rb8 {[%clk 0:02:42.6]} 9. a3 {[%clk 0:02:40.3]} 9... Bd7 {[%clk 0:02:37.5]} 10.
b4 {[%clk 0:02:30.2]} 10... e6 {[%clk 0:02:21.5]} 11. Rc1 {[%clk 0:02:09.1]}
11... Re8 {[%clk 0:02:13.8]} 12. d5 {[%clk 0:01:39.8]} 12... Ne7 {[%clk
0:02:03.4]} 13. Bh6 {[%clk 0:01:20.4]} 13... exd5 {[%clk 0:01:39.8]} 14. Bxg7
{[%clk 0:01:16.7]} 14... Kxg7 {[%clk 0:01:38.6]} 15. cxd5 {[%clk 0:01:16.6]}
15... c6 {[%clk 0:01:38.2]} 16. dxc6 {[%clk 0:01:12.4]} 16... Bxc6 {[%clk
0:01:30.4]} 17. Nd4 {[%clk 0:01:05.8]} 17... d5 {[%clk 0:01:27.4]} 18. e5 {[%clk
0:01:04.7]} 18... Neg8 {[%clk 0:01:13.5]} 19. f4 {[%clk 0:01:02]} 19... Nd7
{[%clk 0:01:11.4]} 20. Be2 {[%clk 0:00:58.3]} 20... f6 {[%clk 0:01:10.3]} 21. e6
{[%clk 0:00:30.8]} 21... Nf8 {[%clk 0:01:09.1]} 22. f5 {[%clk 0:00:28.2]} 22...
Ne7 {[%clk 0:01:05.8]} 23. g4 {[%clk 0:00:23.4]} 23... Qd6 {[%clk 0:01:05.4]}
24. O-O {[%clk 0:00:22.6]} 24... Rec8 {[%clk 0:00:41.7]} 25. Rf3 {[%clk
0:00:22.1]} 25... g5 {[%clk 0:00:40.3]} 26. h4 {[%clk 0:00:19.8]} 26... h6
{[%clk 0:00:39.6]} 27. Kg2 {[%clk 0:00:19.1]} 27... Nh7 {[%clk 0:00:37.9]} 28.
Rh1 {[%clk 0:00:18.5]} 28... gxh4 {[%clk 0:00:35.4]} 29. Rxh4 {[%clk 0:00:17.1]}
29... Ng5 {[%clk 0:00:35.3]} 30. Rfh3 {[%clk 0:00:15.9]} 30... Rh8 {[%clk
0:00:33.6]} 31. Rh1 {[%clk 0:00:15.7]} 31... Be8 {[%clk 0:00:33.4]} 32. Nd1
{[%clk 0:00:13.9]} 32... Rc8 {[%clk 0:00:32.4]} 33. Nf2 {[%clk 0:00:13.6]} 33...
Qc7 {[%clk 0:00:22.4]} 34. Nf3 {[%clk 0:00:13.1]} 34... Nxf3 {[%clk 0:00:20.1]}
35. Bxf3 {[%clk 0:00:12.7]} 35... Qc3 {[%clk 0:00:19.8]} 36. Qf4 {[%clk
0:00:09.9]} 36... Rc4 {[%clk 0:00:18.1]} 37. Qd6 {[%clk 0:00:09.6]} 37... Rc7
{[%clk 0:00:17.5]} 38. Qh2 {[%clk 0:00:07.7]} 38... Qe5 {[%clk 0:00:16]} 39.
Rxh6 {[%clk 0:00:07.6]} 39... Qxh2+ {[%clk 0:00:15.4]} 40. R6xh2 {[%clk
0:00:07.4]} 40... Rxh2+ {[%clk 0:00:14.7]} 41. Rxh2 {[%clk 0:00:07.5]} 41... Rc3
{[%clk 0:00:15.3]} 42. Kg3 {[%clk 0:00:06.6]} 42... Rxa3 {[%clk 0:00:14.9]} 43.
Kf4 {[%clk 0:00:06.3]} 43... Rb3 {[%clk 0:00:13.6]} 44. Rh1 {[%clk 0:00:04.4]}
44... Rxb4+ {[%clk 0:00:13.2]} 45. Kg3 {[%clk 0:00:04.5]} 45... Rb3 {[%clk
0:00:13]} 46. Rc1 {[%clk 0:00:03.6]} 46... Bc6 {[%clk 0:00:12.7]} 47. Kf4 {[%clk
0:00:02.9]} 47... Rb4+ {[%clk 0:00:12.4]} 48. Kg3 {[%clk 0:00:02.7]} 48... Rb3
{[%clk 0:00:11.3]} 49. Kf4 {[%clk 0:00:02.7]} 49... a5 {[%clk 0:00:11.3]} 0-1

[Event "*** Titled Tuesday Blitz"]
[Site "Chess.com"]
[Date "2020.05.19"]
[Round "5"]
[White "AleksanderHnydiuk"]
[Black "VolodymyrMolyboha"]
[Result "1-0"]
[WhiteElo "2574"]
[BlackElo "2408"]
[TimeControl "180+1"]
[EndTime "12:57:51 PDT"]
[Termination "AleksanderHnydiuk won by resignation"]

1. Nf3 {[%clk 0:03:00.9]} 1... g6 {[%clk 0:02:59.9]} 2. c4 {[%clk 0:02:59.9]}
2... Bg7 {[%clk 0:02:59.9]} 3. d4 {[%clk 0:03:00.4]} 3... d6 {[%clk 0:03:00.1]}
4. Nc3 {[%clk 0:02:56.7]} 4... Nd7 {[%clk 0:02:59.5]} 5. g3 {[%clk 0:02:56.5]}
5... e5 {[%clk 0:02:59.6]} 6. Bg2 {[%clk 0:02:57.1]} 6... Ngf6 {[%clk 0:02:59]}
7. O-O {[%clk 0:02:56.9]} 7... O-O {[%clk 0:02:59.2]} 8. e4 {[%clk 0:02:57]}
8... c6 {[%clk 0:02:59.4]} 9. h3 {[%clk 0:02:56.7]} 9... Re8 {[%clk 0:02:59.6]}
10. Be3 {[%clk 0:02:55.5]} 10... exd4 {[%clk 0:02:57.9]} 11. Nxd4 {[%clk
0:02:55.4]} 11... Nc5 {[%clk 0:02:58.4]} 12. Qc2 {[%clk 0:02:55.2]} 12... a5
{[%clk 0:02:58.7]} 13. Rfe1 {[%clk 0:02:50.1]} 13... Nfd7 {[%clk 0:02:58.6]} 14.
Rad1 {[%clk 0:02:48.8]} 14... a4 {[%clk 0:02:58.4]} 15. f4 {[%clk 0:02:44.5]}
15... Qa5 {[%clk 0:02:57]} 16. Bf2 {[%clk 0:02:30.2]} 16... Bf8 {[%clk
0:02:55.2]} 17. Nf3 {[%clk 0:02:18.7]} 17... Nb6 {[%clk 0:02:50.4]} 18. Nd2
{[%clk 0:01:13.5]} 18... Be6 {[%clk 0:02:48.1]} 19. f5 {[%clk 0:01:08.4]} 19...
Bxc4 {[%clk 0:02:40.9]} 20. b3 {[%clk 0:00:49.6]} 20... Bd3 {[%clk 0:02:22.8]}
21. Qb2 {[%clk 0:00:40.5]} 21... axb3 {[%clk 0:02:19.1]} 22. axb3 {[%clk
0:00:39.6]} 22... Qb4 {[%clk 0:02:12.3]} 23. Na2 {[%clk 0:00:31.5]} 23... Qb5
{[%clk 0:02:11.9]} 24. Nc1 {[%clk 0:00:27.1]} 24... Bg7 {[%clk 0:01:57]} 25. Bd4
{[%clk 0:00:24.6]} 25... Bxd4+ {[%clk 0:01:38.9]} 26. Qxd4 {[%clk 0:00:25.5]}
26... Bc2 {[%clk 0:01:38.8]} 27. Nc4 {[%clk 0:00:21.3]} 27... Bxd1 {[%clk
0:01:35.4]} 28. Nxd6 {[%clk 0:00:20.6]} 28... Nxb3 {[%clk 0:01:24.2]} 29. Nxb3
{[%clk 0:00:18.4]} 29... Qxb3 {[%clk 0:01:24.2]} 30. Nxe8 {[%clk 0:00:17.3]}
30... Rxe8 {[%clk 0:01:23.5]} 31. Rxd1 {[%clk 0:00:17.5]} 31... Nc4 {[%clk
0:01:17.4]} 32. Kh2 {[%clk 0:00:14.7]} 32... Ne5 {[%clk 0:01:15.5]} 33. Rd2
{[%clk 0:00:13]} 33... Qa3 {[%clk 0:01:11.4]} 34. f6 {[%clk 0:00:11.4]} 34...
Qf8 {[%clk 0:01:11.1]} 35. Rb2 {[%clk 0:00:10.2]} 35... b5 {[%clk 0:01:09.2]}
36. Rc2 {[%clk 0:00:09.6]} 36... h5 {[%clk 0:01:07.5]} 37. Rc5 {[%clk
0:00:09.4]} 37... Nc4 {[%clk 0:00:59.3]} 38. Rxc6 {[%clk 0:00:09.6]} 38... Rd8
{[%clk 0:00:56]} 39. Qf2 {[%clk 0:00:08.2]} 39... Qe8 {[%clk 0:00:52.4]} 40. Rc7
{[%clk 0:00:06.1]} 40... Qe5 {[%clk 0:00:50.5]} 41. Re7 {[%clk 0:00:05.6]} 41...
Qd6 {[%clk 0:00:44.1]} 42. e5 {[%clk 0:00:05.1]} 42... Qd2 {[%clk 0:00:43.8]}
43. Qxd2 {[%clk 0:00:04.2]} 43... Rxd2 {[%clk 0:00:42.9]} 44. Kg1 {[%clk
0:00:04.7]} 44... Re2 {[%clk 0:00:41.3]} 45. Bd5 {[%clk 0:00:03.1]} 45... Nxe5
{[%clk 0:00:38.2]} 46. Bxf7+ {[%clk 0:00:03.1]} 46... Kf8 {[%clk 0:00:38.1]} 47.
Bd5 {[%clk 0:00:03.1]} 47... b4 {[%clk 0:00:27.3]} 48. Kf1 {[%clk 0:00:03]}
48... Re3 {[%clk 0:00:26.9]} 49. Kf2 {[%clk 0:00:03.1]} 49... Ng4+ {[%clk
0:00:22.6]} 50. hxg4 {[%clk 0:00:04]} 50... Rxe7 {[%clk 0:00:22.1]} 51. fxe7+
{[%clk 0:00:04.9]} 51... Kxe7 {[%clk 0:00:22.4]} 52. gxh5 {[%clk 0:00:05.1]}
52... gxh5 {[%clk 0:00:22.4]} 53. Kg2 {[%clk 0:00:05.4]} 53... Kf6 {[%clk
0:00:22.4]} 54. Kh3 {[%clk 0:00:05.4]} 54... Kg5 {[%clk 0:00:22.5]} 55. Bb3
{[%clk 0:00:05.5]} 55... h4 {[%clk 0:00:19.3]} 56. g4 {[%clk 0:00:05.4]} 1-0

[Event "*** Titled Tuesday Blitz"]
[Site "Chess.com"]
[Date "2020.05.19"]
[Round "5"]
[White "czasnaszachy"]
[Black "Moon_stone123"]
[Result "1-0"]
[WhiteElo "2376"]
[BlackElo "2509"]
[TimeControl "180+1"]
[EndTime "12:57:51 PDT"]
[Termination "czasnaszachy won by checkmate"]

1. e4 {[%clk 0:03:00.9]} 1... c6 {[%clk 0:02:53.2]} 2. Ne2 {[%clk 0:02:55.9]}
2... d5 {[%clk 0:02:52.9]} 3. e5 {[%clk 0:02:56.1]} 3... c5 {[%clk 0:02:49.8]}
4. d4 {[%clk 0:02:55.3]} 4... Nc6 {[%clk 0:02:49.6]} 5. c3 {[%clk 0:02:55.1]}
5... Bf5 {[%clk 0:02:42.1]} 6. dxc5 {[%clk 0:02:54.1]} 6... e6 {[%clk
0:02:40.7]} 7. Nd4 {[%clk 0:02:50.4]} 7... Bg6 {[%clk 0:02:32.1]} 8. Nxc6 {[%clk
0:02:48.7]} 8... bxc6 {[%clk 0:02:31.9]} 9. Be3 {[%clk 0:02:37.5]} 9... Qc7
{[%clk 0:02:25.1]} 10. f4 {[%clk 0:02:36.4]} 10... Nh6 {[%clk 0:02:22.6]} 11.
Bd3 {[%clk 0:02:27.8]} 11... Nf5 {[%clk 0:02:21.2]} 12. Bf2 {[%clk 0:02:27.7]}
12... Rb8 {[%clk 0:02:17]} 13. b4 {[%clk 0:02:26.5]} 13... a5 {[%clk 0:02:14]}
14. a3 {[%clk 0:02:25.4]} 14... Be7 {[%clk 0:02:13.3]} 15. O-O {[%clk
0:02:24.7]} 15... O-O {[%clk 0:02:12.9]} 16. Qe2 {[%clk 0:01:58.7]} 16... Rfd8
{[%clk 0:01:58.4]} 17. Nd2 {[%clk 0:01:49.6]} 17... Ra8 {[%clk 0:01:44.6]} 18.
Nb3 {[%clk 0:01:44.9]} 18... a4 {[%clk 0:01:40.1]} 19. Nd4 {[%clk 0:01:44.4]}
19... Nh4 {[%clk 0:01:35.4]} 20. Bxh4 {[%clk 0:01:06.5]} 20... Bxh4 {[%clk
0:01:36.3]} 21. Bxg6 {[%clk 0:01:00.9]} 21... hxg6 {[%clk 0:01:36.3]} 22. Rf3
{[%clk 0:00:56.8]} 22... Be7 {[%clk 0:01:24.1]} 23. Raf1 {[%clk 0:00:55.4]}
23... Ra7 {[%clk 0:01:13]} 24. Rh3 {[%clk 0:00:55.1]} 24... Qd7 {[%clk
0:01:11.4]} 25. g4 {[%clk 0:00:53.5]} 25... Re8 {[%clk 0:01:07.3]} 26. f5 {[%clk
0:00:45.6]} 26... exf5 {[%clk 0:01:03.7]} 27. gxf5 {[%clk 0:00:45.6]} 27... Bf8
{[%clk 0:01:04.1]} 28. e6 {[%clk 0:00:44.3]} 28... Qe7 {[%clk 0:00:58.6]} 29.
Qg4 {[%clk 0:00:26.3]} 29... Qf6 {[%clk 0:00:55]} 30. fxg6 {[%clk 0:00:19.1]}
30... Qxg6 {[%clk 0:00:47.8]} 31. Qxg6 {[%clk 0:00:19.2]} 31... fxg6 {[%clk
0:00:47.2]} 32. Nxc6 {[%clk 0:00:19.2]} 32... Rc7 {[%clk 0:00:44.9]} 33. Nd4
{[%clk 0:00:19.4]} 33... Be7 {[%clk 0:00:43.1]} 34. Rf7 {[%clk 0:00:17]} 34...
Rcc8 {[%clk 0:00:41.2]} 35. Rhf3 {[%clk 0:00:13.7]} 35... Bf6 {[%clk 0:00:41.5]}
36. R3xf6 {[%clk 0:00:12.8]} 36... gxf6 {[%clk 0:00:41.5]} 37. Rd7 {[%clk
0:00:12.5]} 37... Kf8 {[%clk 0:00:28.8]} 38. c6 {[%clk 0:00:12.5]} 38... Re7
{[%clk 0:00:28.8]} 39. b5 {[%clk 0:00:12.6]} 39... f5 {[%clk 0:00:28.2]} 40. b6
{[%clk 0:00:12.3]} 40... Rxe6 {[%clk 0:00:25.6]} 41. Nxe6+ {[%clk 0:00:11.7]}
41... Ke8 {[%clk 0:00:26.1]} 42. Rc7 {[%clk 0:00:07.8]} 42... Rb8 {[%clk
0:00:25.8]} 43. b7 {[%clk 0:00:07.7]} 43... f4 {[%clk 0:00:24.3]} 44. Rc8+
{[%clk 0:00:07.7]} 44... Kf7 {[%clk 0:00:24.8]} 45. Rxb8 {[%clk 0:00:07.3]}
45... f3 {[%clk 0:00:25.6]} 46. Rf8+ {[%clk 0:00:07.2]} 46... Ke7 {[%clk
0:00:25.5]} 47. b8=Q {[%clk 0:00:06.8]} 47... f2+ {[%clk 0:00:26.4]} 48. Kxf2
{[%clk 0:00:06]} 48... d4 {[%clk 0:00:27.3]} 49. Qd8+ {[%clk 0:00:05.5]} 49...
Kxe6 {[%clk 0:00:27.4]} 50. Qd7+ {[%clk 0:00:05.7]} 50... Ke5 {[%clk 0:00:27]}
51. Re8+ {[%clk 0:00:05.7]} 51... Kf4 {[%clk 0:00:26.8]} 52. Qxd4+ {[%clk
0:00:05.8]} 52... Kg5 {[%clk 0:00:26.9]} 53. Qe5+ {[%clk 0:00:05.6]} 53... Kg4
{[%clk 0:00:25.5]} 54. Qg3+ {[%clk 0:00:05.3]} 54... Kf5 {[%clk 0:00:25.1]} 55.
Qf3+ {[%clk 0:00:05.6]} 55... Kg5 {[%clk 0:00:24.5]} 56. Re5+ {[%clk 0:00:05.7]}
56... Kh6 {[%clk 0:00:23.1]} 57. Qf4+ {[%clk 0:00:05.8]} 57... Kg7 {[%clk
0:00:22.4]} 58. Re7+ {[%clk 0:00:05.4]} 58... Kh8 {[%clk 0:00:22.3]} 59. Qf6+
{[%clk 0:00:05.4]} 59... Kg8 {[%clk 0:00:22.3]} 60. Qg7# {[%clk 0:00:05.6]} 1-0

[Event "*** Titled Tuesday Blitz"]
[Site "Chess.com"]
[Date "2020.05.19"]
[Round "5"]
[White "poummba"]
[Black "Evgeny81"]
[Result "0-1"]
[WhiteElo "2445"]
[BlackElo "2711"]
[TimeControl "180+1"]
[EndTime "12:57:53 PDT"]
[Termination "Evgeny81 won on time"]

1. e4 {[%clk 0:03:00.9]} 1... e6 {[%clk 0:03:00.9]} 2. d4 {[%clk 0:03:00.6]}
2... d5 {[%clk 0:03:01.2]} 3. Nc3 {[%clk 0:03:01.5]} 3... Nf6 {[%clk 0:03:00.9]}
4. Bg5 {[%clk 0:03:00.7]} 4... Bb4 {[%clk 0:02:59.9]} 5. Bd3 {[%clk 0:03:00.5]}
5... dxe4 {[%clk 0:02:53.3]} 6. Bxe4 {[%clk 0:02:59.6]} 6... h6 {[%clk
0:02:52.9]} 7. Bxf6 {[%clk 0:02:59.2]} 7... Qxf6 {[%clk 0:02:52.6]} 8. Nf3
{[%clk 0:02:55.3]} 8... c5 {[%clk 0:02:48.1]} 9. Qd3 {[%clk 0:02:51.3]} 9... Nc6
{[%clk 0:02:42.7]} 10. a3 {[%clk 0:02:47]} 10... Ba5 {[%clk 0:02:30.5]} 11. dxc5
{[%clk 0:02:35.7]} 11... Bxc3+ {[%clk 0:02:24]} 12. Qxc3 {[%clk 0:02:21.7]}
12... Qxc3+ {[%clk 0:02:23.6]} 13. bxc3 {[%clk 0:02:22.6]} 13... Bd7 {[%clk
0:02:23.9]} 14. Rb1 {[%clk 0:02:15.1]} 14... O-O-O {[%clk 0:02:21.2]} 15. Nd4
{[%clk 0:02:07.9]} 15... Na5 {[%clk 0:02:06.9]} 16. Nb3 {[%clk 0:01:53.9]} 16...
Nc4 {[%clk 0:02:03.5]} 17. Bxb7+ {[%clk 0:01:39.3]} 17... Kxb7 {[%clk
0:02:04.4]} 18. Na5+ {[%clk 0:01:36.4]} 18... Kc7 {[%clk 0:02:03.5]} 19. Nxc4
{[%clk 0:01:36.6]} 19... Bc6 {[%clk 0:01:57.2]} 20. O-O {[%clk 0:01:28.4]} 20...
Rd5 {[%clk 0:01:56.5]} 21. Na5 {[%clk 0:01:13.3]} 21... Rxc5 {[%clk 0:01:47.9]}
22. Nxc6 {[%clk 0:01:13.4]} 22... Kxc6 {[%clk 0:01:41.2]} 23. Rb3 {[%clk
0:01:13.3]} 23... Rd8 {[%clk 0:01:37.4]} 24. f3 {[%clk 0:01:07.8]} 24... Re5
{[%clk 0:01:29.3]} 25. g3 {[%clk 0:00:58.5]} 25... Rd2 {[%clk 0:01:16.4]} 26.
Rf2 {[%clk 0:00:57.6]} 26... Re1+ {[%clk 0:01:15.6]} 27. Kg2 {[%clk 0:00:57.6]}
27... Ree2 {[%clk 0:01:15.1]} 28. Rxe2 {[%clk 0:00:55.4]} 28... Rxe2+ {[%clk
0:01:16]} 29. Kh3 {[%clk 0:00:55.8]} 29... Rxc2 {[%clk 0:01:16.2]} 30. f4 {[%clk
0:00:49]} 30... f5 {[%clk 0:01:11.1]} 31. a4 {[%clk 0:00:39.7]} 31... g5 {[%clk
0:01:08.7]} 32. fxg5 {[%clk 0:00:34.8]} 32... hxg5 {[%clk 0:01:09.6]} 33. a5
{[%clk 0:00:29.7]} 33... g4+ {[%clk 0:01:07.6]} 34. Kh4 {[%clk 0:00:30]} 34...
Rxh2+ {[%clk 0:01:08.2]} 35. Kg5 {[%clk 0:00:30.5]} 35... Rf2 {[%clk 0:00:58.1]}
36. a6 {[%clk 0:00:24.7]} 36... Rf3 {[%clk 0:00:55.4]} 37. Rb7 {[%clk
0:00:24.6]} 37... Rxg3 {[%clk 0:00:51.7]} 38. Rxa7 {[%clk 0:00:24.7]} 38... Rxc3
{[%clk 0:00:51.7]} 39. Re7 {[%clk 0:00:24.6]} 39... Kd6 {[%clk 0:00:49.1]} 40.
Kf6 {[%clk 0:00:21.1]} 40... g3 {[%clk 0:00:41.7]} 41. Rxe6+ {[%clk 0:00:14.8]}
41... Kd5 {[%clk 0:00:42]} 42. a7 {[%clk 0:00:13.3]} 42... Ra3 {[%clk
0:00:39.1]} 43. Kxf5 {[%clk 0:00:05.7]} 43... g2 {[%clk 0:00:37.6]} 44. Rg6
{[%clk 0:00:04.7]} 44... Rf3+ {[%clk 0:00:37.2]} 45. Kg4 {[%clk 0:00:04.5]}
45... g1=Q+ {[%clk 0:00:32.8]} 46. Kxf3 {[%clk 0:00:04.7]} 46... Qf1+ {[%clk
0:00:28.1]} 47. Kg4 {[%clk 0:00:03.2]} 47... Qg2+ {[%clk 0:00:26.8]} 48. Kh5
{[%clk 0:00:02.7]} 48... Qh2+ {[%clk 0:00:25.8]} 49. Kg5 {[%clk 0:00:02.9]}
49... Qg1+ {[%clk 0:00:26.4]} 50. Kh6 {[%clk 0:00:03.1]} 50... Qxa7 {[%clk
0:00:26.9]} 51. Rg7 {[%clk 0:00:03.5]} 51... Qf2 {[%clk 0:00:25.3]} 52. Rg5+
{[%clk 0:00:02.2]} 52... Ke6 {[%clk 0:00:24.5]} 53. Kg6 {[%clk 0:00:03.1]} 53...
Qf3 {[%clk 0:00:20.1]} 54. Kh6 {[%clk 0:00:01.2]} 54... Qf4 {[%clk 0:00:16.4]}
0-1

[Event "*** Titled Tuesday Blitz"]
[Site "Chess.com"]
[Date "2020.05.19"]
[Round "5"]
[White "Kislov_Oleg"]
[Black "Keks2017"]
[Result "1/2-1/2"]
[WhiteElo "2366"]
[BlackElo "2511"]
[TimeControl "180+1"]
[EndTime "12:57:54 PDT"]
[Termination "Game drawn by repetition"]

1. e4 {[%clk 0:03:00.9]} 1... d6 {[%clk 0:02:59.5]} 2. d4 {[%clk 0:03:00.4]}
2... Nf6 {[%clk 0:02:59.2]} 3. Nc3 {[%clk 0:03:00.5]} 3... g6 {[%clk 0:02:58.9]}
4. Be3 {[%clk 0:02:59.7]} 4... c6 {[%clk 0:02:58.4]} 5. f3 {[%clk 0:02:59.1]}
5... Nbd7 {[%clk 0:02:58.1]} 6. Qd2 {[%clk 0:02:58.9]} 6... b5 {[%clk 0:02:58]}
7. Nh3 {[%clk 0:02:55.5]} 7... Bb7 {[%clk 0:02:54.3]} 8. a3 {[%clk 0:02:49.5]}
8... a6 {[%clk 0:02:54.2]} 9. Nf2 {[%clk 0:02:47.9]} 9... Bg7 {[%clk 0:02:53.7]}
10. Be2 {[%clk 0:02:35.5]} 10... O-O {[%clk 0:02:52.8]} 11. O-O {[%clk
0:02:35.4]} 11... Qc7 {[%clk 0:02:52.5]} 12. Bh6 {[%clk 0:02:28.6]} 12... c5
{[%clk 0:02:52.3]} 13. Bxg7 {[%clk 0:02:27.5]} 13... Kxg7 {[%clk 0:02:52.1]} 14.
d5 {[%clk 0:02:27.1]} 14... Nb6 {[%clk 0:02:46]} 15. f4 {[%clk 0:02:20.7]} 15...
b4 {[%clk 0:02:35.9]} 16. Ncd1 {[%clk 0:02:12.8]} 16... a5 {[%clk 0:02:35.7]}
17. Ne3 {[%clk 0:02:10.5]} 17... e6 {[%clk 0:02:28.6]} 18. Neg4 {[%clk
0:01:36.3]} 18... Nxg4 {[%clk 0:02:21.9]} 19. Nxg4 {[%clk 0:01:32.8]} 19... f5
{[%clk 0:02:17.7]} 20. Ne3 {[%clk 0:01:19.4]} 20... exd5 {[%clk 0:02:01]} 21.
Nxd5 {[%clk 0:01:18.6]} 21... Bxd5 {[%clk 0:01:45]} 22. exd5 {[%clk 0:01:19.5]}
22... Rae8 {[%clk 0:01:40.5]} 23. axb4 {[%clk 0:01:13.1]} 23... axb4 {[%clk
0:01:39.1]} 24. Bb5 {[%clk 0:00:51.4]} 24... Re7 {[%clk 0:01:38.4]} 25. Rfe1
{[%clk 0:00:47.9]} 25... Rff7 {[%clk 0:01:37.4]} 26. b3 {[%clk 0:00:37.2]} 26...
Rxe1+ {[%clk 0:01:32.7]} 27. Rxe1 {[%clk 0:00:34.9]} 27... Re7 {[%clk
0:01:32.2]} 28. Bc6 {[%clk 0:00:23.2]} 28... Kf7 {[%clk 0:01:26.7]} 29. Kf2
{[%clk 0:00:17.2]} 29... Nc8 {[%clk 0:01:17.3]} 30. Ra1 {[%clk 0:00:13.6]} 30...
Re4 {[%clk 0:01:06]} 31. g3 {[%clk 0:00:10.2]} 31... Ne7 {[%clk 0:01:02.3]} 32.
Ra6 {[%clk 0:00:06.6]} 32... Nxc6 {[%clk 0:00:39]} 33. Rxc6 {[%clk 0:00:06.8]}
33... Qe7 {[%clk 0:00:38.7]} 34. Ra6 {[%clk 0:00:06.8]} 34... Rd4 {[%clk
0:00:34.1]} 35. Qe3 {[%clk 0:00:04.3]} 35... Qxe3+ {[%clk 0:00:30.8]} 36. Kxe3
{[%clk 0:00:04.6]} 36... Rxd5 {[%clk 0:00:30.8]} 37. Ra7+ {[%clk 0:00:05.2]}
37... Kf6 {[%clk 0:00:30.8]} 38. Rxh7 {[%clk 0:00:05.1]} 38... Rd1 {[%clk
0:00:30.5]} 39. Rd7 {[%clk 0:00:03.7]} 39... Ke6 {[%clk 0:00:28.4]} 40. Rg7
{[%clk 0:00:02.7]} 40... Kf6 {[%clk 0:00:25.3]} 41. Rd7 {[%clk 0:00:03.3]} 41...
Rd4 {[%clk 0:00:24.1]} 42. h3 {[%clk 0:00:02.2]} 42... Re4+ {[%clk 0:00:23.5]}
43. Kf3 {[%clk 0:00:02.8]} 43... Rd4 {[%clk 0:00:21.2]} 44. g4 {[%clk
0:00:03.4]} 44... Ke6 {[%clk 0:00:20.3]} 45. Rg7 {[%clk 0:00:02.8]} 45... fxg4+
{[%clk 0:00:20.4]} 46. hxg4 {[%clk 0:00:01.5]} 46... Kf6 {[%clk 0:00:19.2]} 47.
Rd7 {[%clk 0:00:02.2]} 47... d5 {[%clk 0:00:19.1]} 48. Ke3 {[%clk 0:00:02.5]}
48... Re4+ {[%clk 0:00:18.6]} 49. Kf3 {[%clk 0:00:01.7]} 49... Rd4 {[%clk
0:00:18.6]} 50. Rd6+ {[%clk 0:00:01.9]} 50... Kf7 {[%clk 0:00:17.8]} 51. Rd7+
{[%clk 0:00:02.4]} 51... Ke6 {[%clk 0:00:17.1]} 52. Rg7 {[%clk 0:00:03.1]} 52...
Kf6 {[%clk 0:00:16.8]} 53. Rd7 {[%clk 0:00:03.7]} 53... Ke6 {[%clk 0:00:16.5]}
54. Rg7 {[%clk 0:00:03.8]} 54... Kf6 {[%clk 0:00:16.5]} 55. Rd7 {[%clk
0:00:04.4]} 55... Ke6 {[%clk 0:00:16.5]} 1/2-1/2